Cogmind - Beta 16 @@@ ROGUE MODE // 2026.02.05 @ 23:02:50 Player: FISH Result: Destroyed 0b10! Performance ------------- Evolutions (9) 4500 Regions Visited (28) 5600 Robots Destroyed (180) 900 Value Destroyed (5181) 5181 Prototype IDs (72) 1440 Alien Tech Used (4) 800 Bonus (21251) 21251 TOTAL SCORE: 39672 Bonus ------- High Alert Combat Kills 163 Follower Combat Kills 1245 Awakened Behemoth Slayer 1000 Network Hubs Disabled 400 Met Data Miner 300 Met Imprinter 300 Built Enhanced Grunts 300 Met R17 at Cetus 500 Found Hidden Lab 3000 Met R17 at Research 2000 Met Sigix 2000 Escaped with Sigix 5000 Met MAIN.C 5000 Win 3000 Friendly Fire -2957 Cogmind --------- Core Integrity 426/1600 Matter 300/300 Energy 699/700 System Corruption 2% Temperature Cool (0) Movement Core (100) Ox1 Location Tau Ceti IV Orbit Parts ------- > --- POWER (3) -------- (None) > --- PROPULSION (8) --- (None) > --- UTILITY (13) ----- Experimental Energy Well Enhanced Optical Array Advanced Signal Interpreter > --- WEAPON (2) ------- CR-A16's Behemoth Slayer > --- INVENTORY (5) ---- Micro Antimatter Reactor Micro Antimatter Reactor Warp Cannon Sigix Containment Pod Peak State ------------ > --- POWER ------------ Backup Power VII Micro Antimatter Reactor Micro Antimatter Reactor > --- PROPULSION ------- Experimental Cesium-ion Thruster Experimental Cesium-ion Thruster Experimental Cesium-ion Thruster Cooled Impulse Thruster Cooled Impulse Thruster Cooled Impulse Thruster Cooled Impulse Thruster Cooled Q-thruster > --- UTILITY ---------- Advanced Power Amplifier Experimental Cooling System Medium Storage Unit Experimental Energy Well Enhanced Optical Array Advanced Signal Interpreter Seismic Detector Improved Transmission Jammer Advanced Phase Shifter Advanced Cloaking Device System Mapper Deep Network Scanner Quantum Router > --- WEAPON ----------- Sigix Terminator > --- INVENTORY -------- Micro Antimatter Reactor Micro Antimatter Reactor ECM Suite Warp Cannon Gamma Bomb Array CR-A16's Behemoth Slayer Sigix Containment Pod [Rating: 213] Favorites ----------- Power Light Deuterium Engine Engine Light Deuterium Engine Power Core Micro Nuclear Core Reactor Micro Antimatter Reactor Propulsion Improved Flight Unit Flight Unit Improved Flight Unit Utility Hardened Medium Armor Plating Device Seismic Detector Storage Medium Storage Unit Processor Improved Signal Interpreter Hackware System Mapper Protection Hardened Medium Armor Plating Weapon Assault Cannon Energy Gun Small Laser Energy Cannon Long-range Proton Cannon Ballistic Gun Autogun Ballistic Cannon Assault Cannon Launcher Heavy Missile Launcher Slashing Weapon Katana Piercing Weapon CR-A16's Behemoth Slayer Build | -11 -10 -9 -9 -8 -7 -7 -7 -7 -6 -6 -6 -6 -6 -5 -5 -5 -5 -5 -5 -4 -4 -4 -3 -3 -2 -2 -1 -1 ------- Run | Yrd Mat Mat Sto Mat Fac Low Low Zio Pro Fac Low Low Dat Pro Fac Ext Cet Arc Hub Fac Arm Lab Res Tes Res Qua Acc Com Slots Evolved 18 | . . 2 . 2 2 . . . . 2 . . . . 2 . . . . 2 . . 2 . 2 . 2 . Power 1 | . . . . . . . . . . . . . . . 1 . . . . . . . . . . . . . Propulsion 6 | . . . . 2 1 . . . . . . . . . 1 . . . . 1 . . 1 . . . . . Utility 11 | . . 2 . . 1 . . . . 2 . . . . . . . . . 1 . . 1 . 2 . 2 . Weapon . | . . . . . . . . . . . . . . . . . . . . . . . . . . . . . Parts Attached 161 | 3 5 14 11 13 13 1 2 2 1 10 . 1 2 2 13 9 . 2 4 15 3 3 7 12 5 2 2 4 Power 22 | . . 1 3 2 1 . . . . 2 . . . . 1 2 . . 1 3 . . 3 2 . . . 1 Engine 12 | . . 1 3 2 . . . . . 2 . . . . 1 2 . . 1 . . . . . . . . . Core 3 | . . . . . 1 . . . . . . . . . . . . . . 1 . . . . . . . 1 Reactor 7 | . . . . . . . . . . . . . . . . . . . . 2 . . 3 2 . . . . Propulsion 29 | . . . 1 . 4 . 1 . 1 3 . . . . 5 2 . . 1 3 1 1 1 4 1 . . . Treads . | . . . . . . . . . . . . . . . . . . . . . . . . . . . . . Leg . | . . . . . . . . . . . . . . . . . . . . . . . . . . . . . Wheel . | . . . . . . . . . . . . . . . . . . . . . . . . . . . . . Hover . | . . . . . . . . . . . . . . . . . . . . . . . . . . . . . Flight 29 | . . . 1 . 4 . 1 . 1 3 . . . . 5 2 . . 1 3 1 1 1 4 1 . . . Utility 78 | 1 3 6 3 6 6 1 . 1 . 5 . 1 2 2 7 2 . 2 1 8 2 1 3 6 4 1 2 2 Device 39 | 1 . 2 2 2 4 1 . . . 3 . 1 1 1 2 1 . . . 4 2 . 2 4 2 1 1 2 Storage 8 | . 1 2 . . . . . . . . . . . . . . . . 1 . . . 1 2 1 . . . Processor 9 | . 2 . . 1 2 . . . . . . . . . 1 1 . . . 2 . . . . . . . . Hackware 12 | . . . . 1 . . . . . 2 . . . . 3 . . 2 . 2 . . . . 1 . 1 . Protection 10 | . . 2 1 2 . . . 1 . . . . 1 1 1 . . . . . . 1 . . . . . . Artifact . | . . . . . . . . . . . . . . . . . . . . . . . . . . . . . Weapon 32 | 2 2 7 4 5 2 . 1 1 . . . . . . . 3 . . 1 1 . 1 . . . 1 . 1 Energy Gun 7 | 1 2 2 . 1 1 . . . . . . . . . . . . . . . . . . . . . . . Energy Cannon 2 | . . . . . . . . . . . . . . . . 1 . . . . . 1 . . . . . . Ballistic Gun 9 | 1 . 1 3 1 1 . . . . . . . . . . 1 . . 1 . . . . . . . . . Ballistic Cannon 5 | . . 3 1 1 . . . . . . . . . . . . . . . . . . . . . . . . Launcher 6 | . . 1 . 1 . . 1 . . . . . . . . . . . . 1 . . . . . 1 . 1 Special Weapon . | . . . . . . . . . . . . . . . . . . . . . . . . . . . . . Impact Weapon . | . . . . . . . . . . . . . . . . . . . . . . . . . . . . . Slashing Weapon 1 | . . . . 1 . . . . . . . . . . . . . . . . . . . . . . . . Piercing Weapon 2 | . . . . . . . . 1 . . . . . . . 1 . . . . . . . . . . . . Special Melee Weapon . | . . . . . . . . . . . . . . . . . . . . . . . . . . . . . Unidentified Prototypes 27 | . . . 2 1 1 . . . . 1 . . . . 3 . . . 1 1 . 5 1 7 2 1 . 1 Corrupted Parts 2 | . . . . . . . . . . . . . . . . . . . 2 . . . . . . . . . System Corruption 12 | . . . . . . . . . . . . . . . . . . . 12 . . . . . . . . . Parts Lost 49 | . 2 3 2 5 . . . . 3 . . 1 . 2 . 3 1 . 2 3 1 . . . 1 . . 20 Power 7 | . . . . 1 . . . . 1 . . . . . . 1 . . 1 . . . . . . . . 3 Propulsion 17 | . . . . . . . . . 2 . . . . . . 2 . . 1 3 1 . . . . . . 8 Utility 20 | . 1 1 1 3 . . . . . . . 1 . 2 . . 1 . . . . . . . 1 . . 9 Weapon 5 | . 1 2 1 1 . . . . . . . . . . . . . . . . . . . . . . . . Highest Loss Streak 18 | . 2 3 2 2 . . . . 3 . . 1 . 2 . 2 1 . 1 2 1 . . . 1 . . 18 To Critical Strikes . | . . . . . . . . . . . . . . . . . . . . . . . . . . . . . Average Backups 13 | 4 5 17 18 19 10 9 8 9 9 9 10 9 9 10 9 9 9 8 8 9 9 9 12 14 12 9 5 4 Power 1 | 1 1 1 1 . . . . . . . 1 1 1 1 . 1 . . . 1 1 1 . 1 1 1 1 1 Propulsion 2 | . . . 5 7 2 2 1 1 . 1 2 2 2 2 1 1 2 2 1 1 1 . 1 1 1 . . . Utility 5 | . 2 5 4 5 4 4 5 5 6 5 6 5 5 6 6 4 4 4 4 5 6 6 7 8 7 5 1 . Weapon 4 | 1 2 9 6 6 2 2 2 2 2 1 1 1 1 1 1 1 2 2 1 1 1 2 2 2 3 2 3 1 Tool/Special . | . . . . . . . . . . . . . . . . . . . . . . . . . . . . . Unused Backups 48 | . 3 3 8 1 8 2 . 1 . 6 . . . . 2 . . . . 2 . 2 3 1 1 2 . 3 Power 7 | . 1 . 2 . . 1 . . . . . . . . . . . . . . . . 1 . . . . 2 Propulsion 13 | . . . 4 . 3 . . . . 1 . . . . 2 . . . . . . . 1 1 1 . . . Utility 14 | . 2 . 1 1 2 . . 1 . 2 . . . . . . . . . 1 . 1 1 . . 2 . . Weapon 12 | . . 3 1 . 3 . . . . 2 . . . . . . . . . 1 . 1 . . . . . 1 Tool/Special 2 | . . . . . . 1 . . . 1 . . . . . . . . . . . . . . . . . . Average Slot Usage (%) 81 | . 54 75 74 62 98 100 92 92 86 90 93 93 93 92 90 94 97 92 94 89 88 80 85 92 94 95 94 85 Engine 6 | . . 10 10 8 6 . . . . 5 6 6 6 6 10 5 10 11 6 1 . . . . . . . . Core 1 | . . . . . . 7 7 7 4 . . . . . . . . . . 2 5 5 1 2 4 4 3 2 Flight 17 | . . . . . 37 38 38 38 35 31 33 33 33 33 34 35 35 35 35 33 30 28 30 32 33 33 30 25 Device 10 | . 8 9 9 6 10 14 14 15 14 14 13 19 13 13 14 5 3 1 9 10 10 11 17 17 18 16 21 18 Storage 7 | . 4 11 10 9 7 7 7 7 7 6 6 6 6 6 5 5 5 5 5 4 5 5 4 4 5 8 7 5 Processor 8 | . 12 11 . 8 10 7 7 7 7 6 6 6 6 6 5 16 17 11 5 7 10 10 9 9 8 8 7 7 Hackware 5 | . . . . . 7 7 7 7 7 15 13 13 7 6 10 5 5 14 17 17 14 10 9 9 11 12 11 11 Protection 7 | . . 12 21 11 . . . . . 1 6 . 11 12 . 4 5 5 . . . . . . . . . . Energy Gun 1 | . 23 1 . 2 . . . . . . . . . . . . . . . . . . . . . . . . Ballistic Gun 3 | . 4 9 10 3 6 7 . . . . . . . . . . 1 . 3 . . . . . . . . . Ballistic Cannon 4 | . . 10 10 10 . . . . . . . . . . . . . . . . . . . . . . . . Piercing Weapon 2 | . . . . . . . . 3 6 6 6 6 6 6 5 5 3 5 5 4 5 5 4 4 3 4 3 3 Peak Build Rating 213 | 3 4 18 20 22 43 43 40 38 42 52 50 50 51 59 84 93 93 89 95 123 124 128 141 161 183 182 192 213 Average Rating 49 | 1 3 14 16 19 37 41 37 37 36 47 50 48 50 55 68 84 89 87 90 107 117 114 130 150 172 175 190 174 On Entrance 73 | . 3 4 18 19 17 43 40 37 38 34 48 50 48 51 59 82 93 82 89 94 118 118 118 135 161 174 180 192 Avg Prop Armor Cover (%) 3 | . . . . . . . . . . 2 . . . . 3 . . . 2 4 4 2 . . . . . 1 Naked Turns 8 | . . . 8 . . . . . . . . . . . . . . . . . . . . . . . . . Heaviest Build 83 | 3 82 83 73 74 25 24 27 21 25 24 23 23 26 28 36 41 45 36 38 43 48 33 51 58 60 54 42 44 Greatest Support 65 | 3 3 9 5 3 25 25 26 26 26 28 28 28 28 28 36 51 39 51 51 53 52 42 52 64 65 50 65 65 Greatest Overweight (x) 27 | . 27 27 24 24 1 . 1 . . . . . . . . 1 1 . 1 . 1 . . 1 1 1 . 1 Average Overweight (x) . | . 1 13 20 21 . . . . . . . . . . . . . . . . . . . . . . . . Largest Inventory Capacity 25 | 5 25 25 20 20 20 10 10 10 10 10 10 10 10 10 10 10 10 10 10 10 10 10 15 15 15 10 10 10 Average Capacity 14 | 5 12 18 19 20 10 10 10 10 10 10 10 10 10 10 10 10 10 10 10 9 10 10 12 15 13 10 10 8 Most Carried 20 | 5 9 20 20 20 19 10 10 10 10 10 10 10 10 10 10 10 10 9 9 10 10 10 15 15 15 10 9 10 Average Carried 13 | 4 5 17 18 19 9 9 8 9 9 9 10 9 9 9 9 8 9 8 8 9 9 9 12 14 12 9 8 6 Final Capacity 25 | 5 25 20 20 20 10 10 10 10 10 10 10 10 10 10 10 10 10 10 10 10 10 10 15 15 10 10 10 5 Final Carried 20 | 4 9 20 19 20 10 10 9 10 10 10 10 9 10 10 10 10 9 8 7 10 10 10 15 15 10 10 9 5 Class Distribution -------------------- 48% | Mutant 13% | Hacker-Sprinter 9% | Scout 6% | Hacker-Scout 5% | Sprinter 4% | Commander-Sprinter Dominant Class ---------------- Mutant | -10/Materials Mutant | -9/Materials Mutant | -9/Storage Mutant | -8/Materials Scout | -7/Factory Scout | -7/Lower Caves Scout | -7/Lower Caves Scout | -7/Zion Scout | -6/Proximity Caves Hacker-Sprinter | -6/Factory Hacker-Sprinter | -6/Lower Caves Hacker-Sprinter | -6/Lower Caves Sprinter | -6/Data Miner Sprinter | -5/Proximity Caves Hacker-Sprinter | -5/Factory Commander-Sprinter | -5/Extension Hacker-Mutant | -5/Cetus Hacker-Mutant | -5/Archives Hacker-Sprinter | -5/Hub_04(d) Hacker-Scout | -4/Factory Hacker-Scout | -4/Armory Hacker-Scout | -4/Lab Hacker-Scout | -3/Research Hacker-Ninja | -3/Testing Wizard-Assassin | -2/Research Wizard-Ninja | -2/Quarantine Wizard-Ninja | -1/Access Wizard-Sprinter | -1/Command Resources | -11 -10 -9 -9 -8 -7 -7 -7 -7 -6 -6 -6 -6 -6 -5 -5 -5 -5 -5 -5 -4 -4 -4 -3 -3 -2 -2 -1 -1 ----------- Run | Yrd Mat Mat Sto Mat Fac Low Low Zio Pro Fac Low Low Dat Pro Fac Ext Cet Arc Hub Fac Arm Lab Res Tes Res Qua Acc Com Matter Collected 5612 | 260 56 454 547 812 179 40 168 30 87 210 22 31 . 73 199 449 116 10 106 443 . . 486 247 263 259 32 33 Remotely 128 | . . . . 128 . . . . . . . . . . . . . . . . . . . . . . . . Salvage Created 7292 | 112 333 396 534 583 260 . . . 44 659 . . 28 93 231 1015 320 39 585 450 33 . 635 265 198 259 172 48 Parts 392 | 8 23 26 37 37 21 . . . 7 29 . . 2 8 5 35 9 3 39 26 2 . 37 16 8 6 7 1 Haulers Intercepted 15 | . . 1 4 3 . . . . . 2 . . . . 1 . . . 2 . . . 2 . . . . . Recyclers Shooed 8 | . . . . 1 1 . . . . 1 . . . . . 3 . . . . . . 1 . . 1 . . Parts Field Recycled . | . . . . . . . . . . . . . . . . . . . . . . . . . . . . . Retrieved Matter . | . . . . . . . . . . . . . . . . . . . . . . . . . . . . . Parts Self-Destructed 15 | . . . . . . . . 1 6 . 2 . . 6 . . . . . . . . . . . . . . Prevented . | . . . . . . . . . . . . . . . . . . . . . . . . . . . . . Parts Restored . | . . . . . . . . . . . . . . . . . . . . . . . . . . . . . Kills | -11 -10 -9 -9 -8 -7 -7 -7 -7 -6 -6 -6 -6 -6 -5 -5 -5 -5 -5 -5 -4 -4 -4 -3 -3 -2 -2 -1 -1 ------- Run | Yrd Mat Mat Sto Mat Fac Low Low Zio Pro Fac Low Low Dat Pro Fac Ext Cet Arc Hub Fac Arm Lab Res Tes Res Qua Acc Com Combat Hostiles Destroyed 76 | . 4 13 10 14 1 . . . 4 1 . . . 1 . 12 3 . 1 1 3 . 4 1 1 . 1 1 Melee 5 | . . . . . 1 . . . 1 1 . . . . . 1 . . . . . . . 1 . . . . Guns 16 | . 4 3 7 2 . . . . . . . . . . . . . . . . . . . . . . . . Cannons 21 | . . 6 3 9 . . . . . . . . . . . 3 . . . . . . . . . . . . AOE 20 | . . 4 . 3 . . . . 3 . . . . . . 1 . . 1 . 3 . 4 . . . . 1 Classes Destroyed 15 | 2 4 4 . . 2 . . . . 2 . . . . . . . . . . . . . 1 . . . . Worker 24 | . 1 . . 2 2 . . . . 2 . . . . . 1 . . 8 . . . 5 2 1 . . . Builder 10 | . . . . . . . . . . 1 . . . . . . . . 6 1 . . 1 1 . . . . Tunneler 6 | 2 . 1 . . 1 . . . . 2 . . . . . . . . . . . . . . . . . . Hauler 15 | . . 1 4 3 . . . . . 2 . . . . 1 . . . 2 . . . 2 . . . . . Recycler 11 | 1 1 . 1 . 2 . . . . 1 . . . . 1 . . . . 1 . . 1 1 . 1 . . Mechanic 2 | . . . . . 1 . . . . 1 . . . . . . . . . . . . . . . . . . Operator 6 | . 1 . . 1 . . . . . 1 . . . . . . . 1 1 . . . 1 . . . . . Drone 1 | . . . . . . . . . . . . . . . . . . . . . . . . 1 . . . . Watcher 28 | . 2 1 1 4 . . . . . 1 . . . . . 2 2 . 2 5 . . 2 1 1 3 . 1 Swarmer 24 | . . 4 4 4 . . . . 4 . . . . . . 1 . . . . 3 . 4 . . . . . Grunt 23 | . 4 5 4 4 . . . . . . . . . . . 5 . . 1 . . . . . . . . . Duelist 3 | . . 1 1 1 . . . . . . . . . . . . . . . . . . . . . . . . Sentry 14 | . . 3 1 5 . . . . . . . . . . . 5 . . . . . . . . . . . . Programmer 1 | . . . . . 1 . . . . . . . . . . . . . . . . . . . . . . . Behemoth 6 | . . . . . . . . . . 1 . . . 1 . 1 . . . 1 . . . . 1 . 1 . Cetus Guard 3 | . . . . . . . . . . . . . . . . . 3 . . . . . . . . . . . Combat Programmer 1 | . . . . . . . . . . . . . . . . . . . . . . . . . . . . 1 Butcher 1 | . . . . . . . . . . . . . . . . 1 . . . . . . . . . . . . Best Kill Streak 12 | 2 6 7 4 6 2 . . . 3 3 . . 1 1 1 2 2 1 11 1 3 . 12 3 2 3 1 1 Combat Bots Only 6 | . 4 6 4 4 1 . . . 3 1 . . . 1 . 2 2 . 1 1 3 . 4 1 1 . 1 1 Max Kills in Single Turn 11 | 1 1 3 2 5 1 . . . 1 1 . . 1 1 1 1 1 1 11 1 2 . 6 1 1 1 1 1 Gunslinging 1 | . . . 1 . . . . . . . . . . . . . . . . . . . . . . . . . Exploded 4 | . . 2 . 3 . . . . 1 . . . . . . 1 . . 1 . 2 . 4 . . . . 1 Melee 1 | . . . . . 1 . . . 1 1 . . . . . 1 . . . . . . . 1 . . . . Uniques/NPCs Destroyed 2 | . . . . . . . . . . . . . 1 . . . 1 . . . . . . . . . . . Data Miner (-6/Data Miner) A7 (-5/Cetus) Combat | -11 -10 -9 -9 -8 -7 -7 -7 -7 -6 -6 -6 -6 -6 -5 -5 -5 -5 -5 -5 -4 -4 -4 -3 -3 -2 -2 -1 -1 -------- Run | Yrd Mat Mat Sto Mat Fac Low Low Zio Pro Fac Low Low Dat Pro Fac Ext Cet Arc Hub Fac Arm Lab Res Tes Res Qua Acc Com Hostile Shots Fired 768 | . 27 62 53 102 18 10 2 . 17 47 . 10 1 24 1 74 10 2 11 44 42 . 5 12 15 . 9 170 Missed 331 | . 5 16 15 28 9 7 . . 2 34 . 7 1 12 . 43 1 1 5 21 29 . 4 10 4 . 6 71 Hits 437 | . 22 46 38 74 9 3 2 . 15 13 . 3 . 12 1 31 9 1 6 23 13 . 1 2 11 . 3 99 Melee 18 | . . 10 1 5 . . 1 . . . . . . . . . . . . . . . . . . . . 1 Projectile 419 | . 22 36 37 69 9 3 1 . 15 13 . 3 . 12 1 31 9 1 6 23 13 . 1 2 11 . 3 98 AOE 4 | . . . . . . . . . . . . . . . . 1 . . . 2 . . . . . . . 1 Critical Strikes 25 | . 1 2 . 9 . . . . . 1 . . . 1 . 1 1 . 1 . 2 . . . . . . 6 Part Disruptions 1 | . . . . . . . . . . . . . . . . . . . . . . . . . . . . 1 Damage Taken 8181 | . 287 821 400 1205 116 38 16 . 241 144 . 29 . 310 20 547 249 27 405 666 185 . 24 42 154 . 40 2215 Core 2347 | . 146 197 46 203 16 12 . . 44 52 . 17 . 54 20 103 14 . 49 138 29 . . . 33 . 28 1146 Absorbed by Shields 689 | . . . . . . . . . . . . . . . . 19 68 . . 42 . . . . 57 . . 503 Redirected to Shielding 21 | . . . . . . . . . . . . . . 21 . . . . . . . . . . . . . . Regen/Repaired (Parts) 967 | . . 268 5 . . . . 118 . . . . . . 69 . . . . 485 . . . 22 . . . . Core Remaining (%) 72 | 100 41 . 39 63 . . . . 89 . . . . 85 . . . . 81 . . 79 . 100 . 97 . 26 Volleys Fired 358 | 30 23 35 31 70 1 . 7 . 3 . . . . . . 92 29 . 9 2 2 . 2 12 8 1 . 1 Largest 2 | 1 2 2 2 2 1 . 1 . 1 . . . . . . 1 2 . 1 1 1 . 1 1 1 1 . 1 Hottest 114 | 20 80 80 60 92 28 . 39 . 39 . . . . . . 81 114 . 35 49 49 . 100 100 100 30 . . Shots Fired 520 | 30 46 68 62 137 1 . 7 . 3 . . . . . . 92 37 . 9 2 2 . 2 12 8 1 . 1 Gun 215 | 30 46 34 37 49 1 . . . . . . . . . . . 8 . 9 1 . . . . . . . . Cannon 278 | . . 32 25 86 . . . . . . . . . . . 85 29 . . . . . 1 12 8 . . . Launcher 27 | . . 2 . 2 . . 7 . 3 . . . . . . 7 . . . 1 2 . 1 . . 1 . 1 Special . | . . . . . . . . . . . . . . . . . . . . . . . . . . . . . Kinetic 311 | 30 14 58 62 128 1 . . . . . . . . . . . 8 . 9 1 . . . . . . . . Thermal 65 | . 28 8 . 7 . . . . . . . . . . . . . . . . . . 1 12 8 . . 1 Explosive 26 | . . 2 . 2 . . 7 . 3 . . . . . . 7 . . . 1 2 . 1 . . 1 . . Electromagnetic 118 | . 4 . . . . . . . . . . . . . . 85 29 . . . . . . . . . . . Robot Hit Streak 38 | 13 38 20 10 17 . . . . . . . . . . . 18 11 . 1 . . . . 2 . . . . Robot Miss Streak 4 | 3 2 3 4 4 . . . . . . . . . . . 3 2 . 3 . . . . . . . . . Penetration Max 1 | . . . . . . . . . . . . . . . . . 1 . . . . . . . . . . . Secondary Targets 2 | . 1 . 1 . . . . . . . . . . . . . . . . . . . . . . . . . Max Gunslinging Chain 1 | . 1 . 1 . . . . . . . . . . . . . . . . . . . . . . . . . Shots Hit Robots 404 | 24 37 50 42 85 10 . 1 . 2 17 . . 1 3 7 44 24 2 3 12 . . 13 8 4 10 2 3 Core Hits 221 | 8 18 19 21 32 4 . . . 6 10 . . 1 2 2 27 8 . 23 7 2 . 16 2 2 4 . 7 Critical Kills . | . . . . . . . . . . . . . . . . . . . . . . . . . . . . . Critical Parts Destroyed . | . . . . . . . . . . . . . . . . . . . . . . . . . . . . . Critical Strikes 23 | . . 1 . 2 . . . . . 1 . . . . 2 . 4 1 2 4 . . 2 2 . 1 . 1 Burn 1 | . . 1 . . . . . . . . . . . . . . . . . . . . . . . . . . Blast 2 | . . . . 2 . . . . . . . . . . . . . . . . . . . . . . . . Corrupt 2 | . . . . . . . . . . . . . . . . . 2 . . . . . . . . . . . Impale 18 | . . . . . . . . . . 1 . . . . 2 . 2 1 2 4 . . 2 2 . 1 . 1 Melee Attacks 451 | . . . . 4 50 . 5 1 23 59 1 3 24 21 31 12 15 2 3 66 11 18 20 27 23 16 11 5 Impact . | . . . . . . . . . . . . . . . . . . . . . . . . . . . . . Slashing 59 | . . . . 4 50 . 5 . . . . . . . . . . . . . . . . . . . . . Piercing 392 | . . . . . . . . 1 23 59 1 3 24 21 31 12 15 2 3 66 11 18 20 27 23 16 11 5 Sneak Attacks 60 | . . . . . 7 . . . . 12 . . 1 . 2 . 15 2 . 3 . . 7 4 2 4 . 1 Combat Hostiles 3 | . . . . . . . . . . 1 . . . . . . . . . . . . . 1 1 . . . Follow-up Attacks . | . . . . . . . . . . . . . . . . . . . . . . . . . . . . . Damage Inflicted 23218 | 172 403 1203 800 2257 603 . 33 . 328 1240 . . 85 86 415 2274 1425 188 2173 584 264 . 1381 545 192 669 86 5812 Guns 1940 | 172 403 371 384 474 . . . . . . . . . . . . 86 . 50 . . . . . . . . . Cannons 4381 | . . 579 416 1404 . . . . . . . . . . . 1500 385 . . . . . . 97 . . . . Explosions 9815 | . . 253 . 379 . . . . 251 . . . . . . 675 . . 2034 . 264 . 401 . . . . 5558 Melee 7082 | . . . . . 603 . 33 . 77 1240 . . 85 86 415 99 954 188 89 584 . . 980 448 192 669 86 254 Ramming . | . . . . . . . . . . . . . . . . . . . . . . . . . . . . . Kinetic 3989 | 172 108 911 800 1862 . . . . . . . . . . . . 86 . 50 . . . . . . . . . Thermal 5982 | . 238 39 . 16 . . . . . . . . . . . . . . 34 . . . . 97 . . . 5558 Explosive 2187 | . . 253 . 379 . . . . 251 . . . . . . 639 . . . . 264 . 401 . . . . . Electromagnetic 3978 | . 57 . . . . . . . . . . . . . . 1536 385 . 2000 . . . . . . . . . Impact . | . . . . . . . . . . . . . . . . . . . . . . . . . . . . . Slashing 636 | . . . . . 603 . 33 . . . . . . . . . . . . . . . . . . . . . Piercing 6446 | . . . . . . . . . 77 1240 . . 85 86 415 99 954 188 89 584 . . 980 448 192 669 86 254 Highest Corruption 18 | . 3 . . . 3 3 . . . 2 2 2 2 2 3 3 3 3 18 4 4 . . . 2 2 . 2 Average Corruption 2 | . 2 . . . 2 1 . . . 2 2 2 2 2 3 3 3 3 10 3 2 . . . 1 2 . 1 Corruption Purged 7 | . . . . . . 3 . . . . . . . . . . . . . . 4 . . . . . . . Corruption Blocked . | . . . . . . . . . . . . . . . . . . . . . . . . . . . . . Effects 79 | . 5 . . . 2 . . . . 2 5 4 2 8 14 22 5 1 4 1 2 . . . . 2 . . Message Errors 23 | . 2 . . . 1 . . . . 1 1 . 1 4 4 6 1 . 1 1 . . . . . . . . Matter Fused 25 | . . . . . . . . . . . 2 3 . 3 2 8 2 1 1 . 1 . . . . 2 . . Heat Flow Errors 5 | . 1 . . . 1 . . . . . . . 1 . 1 . . . 1 . . . . . . . . . Energy Discharges 14 | . 1 . . . . . . . . . 2 1 . . 6 2 1 . . . 1 . . . . . . . Parts Rejected 1 | . . . . . . . . . . . . . . . . . . . 1 . . . . . . . . . Parts Fused 1 | . . . . . . . . . . . . . . . . 1 . . . . . . . . . . . . Data Loss (minor) 5 | . . . . . . . . . . . . . . 1 1 3 . . . . . . . . . . . . Misfires 1 | . . . . . . . . . . . . . . . . . 1 . . . . . . . . . . . Alerts 4 | . 1 . . . . . . . . 1 . . . . . 2 . . . . . . . . . . . . Overload Shots . | . . . . . . . . . . . . . . . . . . . . . . . . . . . . . Overflow Damage 1959 | . . 2 . 29 130 . . . 4 262 . . . . 32 63 174 189 112 33 38 . 89 239 . 183 16 364 Projectiles 124 | . . 2 . 19 . . . . . . . . . . . 63 21 . . . . . . 19 . . . . Explosions 328 | . . . . 10 . . . . . . . . . . . . . . 80 . 38 . 20 . . . . 180 Melee 1507 | . . . . . 130 . . . 4 262 . . . . 32 . 153 189 32 33 . . 69 220 . 183 16 184 Knockbacks 23 | . . 9 6 8 . . . . . . . . . . . . . . . . . . . . . . . . Impact . | . . . . . . . . . . . . . . . . . . . . . . . . . . . . . Kinetic 19 | . . 6 5 8 . . . . . . . . . . . . . . . . . . . . . . . . Secondary 4 | . . 3 1 . . . . . . . . . . . . . . . . . . . . . . . . . Self-Inflicted Damage 261 | . . . . . . . . . . . . . . . . . . . 189 72 . . . . . . . . Shots 3 | . . . . . . . . . . . . . . . . . . . 2 1 . . . . . . . . Rammed 1 | . 1 . . . . . . . . . . . . . . . . . . . . . . . . . . . Targets Rammed 1 | . 1 . . . . . . . . . . . . . . . . . . . . . . . . . . . Kicked . | . . . . . . . . . . . . . . . . . . . . . . . . . . . . . Crushed . | . . . . . . . . . . . . . . . . . . . . . . . . . . . . . Highest Temperature 423 | . 258 117 61 258 257 . 3 . . 12 . 2 234 309 223 271 334 232 231 308 223 . 196 226 243 . 186 423 Average Temperature 62 | . 86 46 21 80 140 . 1 . . 12 . 2 195 151 31 59 104 109 56 65 72 . 77 65 32 . 99 160 Received Heat Transfer 1724 | . 159 192 105 594 . 12 9 . . 60 . 12 . 368 9 168 . 9 . 18 9 . . . . . . . Effects 10 | . . . . . 3 . . . . . . . . . . 5 1 . . . . . . . . . . 1 Shutdowns 1 | . . . . . . . . . . . . . . . . . . . . . . . . . . . . 1 Energy Bleed 1 | . . . . . . . . . . . . . . . . . 1 . . . . . . . . . . . Interference 8 | . . . . . 3 . . . . . . . . . . 5 . . . . . . . . . . . . Siege Activations . | . . . . . . . . . . . . . . . . . . . . . . . . . . . . . Martial Activations . | . . . . . . . . . . . . . . . . . . . . . . . . . . . . . Shielding Activations . | . . . . . . . . . . . . . . . . . . . . . . . . . . . . . Robots Disrupted . | . . . . . . . . . . . . . . . . . . . . . . . . . . . . . Combat Hostiles . | . . . . . . . . . . . . . . . . . . . . . . . . . . . . . Robots Corrupted 11 | . . . . . . . . . . . . . . . . 7 4 . . . . . . . . . . . Combat Hostiles 10 | . . . . . . . . . . . . . . . . 7 3 . . . . . . . . . . . Parts Fried 21 | . . . . . . . . . . . . . . . . 7 4 . 10 . . . . . . . . . Impact Corruptions . | . . . . . . . . . . . . . . . . . . . . . . . . . . . . . Robots Melted . | . . . . . . . . . . . . . . . . . . . . . . . . . . . . . Combat Hostiles . | . . . . . . . . . . . . . . . . . . . . . . . . . . . . . Parts Melted 1 | . . . . . . . . . . . . . . . . 1 . . . . . . . . . . . . Heat Transferred 1098 | . 525 185 . 37 . . . . . . . . . . . . . . 50 . . . . 74 . . . 227 Parts Sabotaged . | . . . . . . . . . . . . . . . . . . . . . . . . . . . . . Parts Stolen 1 | . . . . . . . 1 . . . . . . . . . . . . . . . . . . . . . Parts Stripped . | . . . . . . . . . . . . . . . . . . . . . . . . . . . . . Power Chain Reactions 2 | . . . . . . . . . . . . . . . . 1 . . 1 . . . . . . . . . Alert | -11 -10 -9 -9 -8 -7 -7 -7 -7 -6 -6 -6 -6 -6 -5 -5 -5 -5 -5 -5 -4 -4 -4 -3 -3 -2 -2 -1 -1 ------- Run | Yrd Mat Mat Sto Mat Fac Low Low Zio Pro Fac Low Low Dat Pro Fac Ext Cet Arc Hub Fac Arm Lab Res Tes Res Qua Acc Com Maximum Alert Level 5 | . . . . 1 . . . . . . . . . . . 3 2 1 3 2 2 . 1 1 1 . 1 5 Low Security (%) 87 | 100 100 100 100 98 100 . . . . 100 . . . . 100 68 . . 62 81 87 . 59 41 28 100 96 18 Level 1 6 | . . . . 1 . . . . . . . . . . . 12 9 100 16 17 . . 40 58 71 . 3 9 Level 2 3 | . . . . . . . . . . . . . . . . 9 90 . . . 11 . . . . . . . Level 3 1 | . . . . . . . . . . . . . . . . 9 . . 20 . . . . . . . . . Level 4 . | . . . . . . . . . . . . . . . . . . . . . . . . . . . . . Level 5 . | . . . . . . . . . . . . . . . . . . . . . . . . . . . . 71 High Security . | . . . . . . . . . . . . . . . . . . . . . . . . . . . . . Max Security . | . . . . . . . . . . . . . . . . . . . . . . . . . . . . . Peak Influence 1953 | 10 90 145 80 205 63 . . . . 153 . . . . 160 861 548 299 789 402 475 . 261 309 264 179 287 1953 Initial 469 | . . . 29 9 56 . . . . . . . . . 150 21 469 206 104 386 76 . . 105 163 81 107 192 Average 107 | 1 22 30 12 88 22 . . . . 37 . . . . 51 221 477 233 282 174 111 . 157 195 211 115 111 1428 Influence Increases 10299 | 15 178 462 286 517 193 . 45 . 90 444 . 15 20 30 328 1842 295 103 765 655 579 . 394 386 423 168 225 1841 Destroy 0b10 Robot/C 2020 | . 80 260 200 280 20 . . . 80 20 . . 20 20 . 620 160 20 20 20 60 . 80 . 20 . 20 20 Destroy 0b10 Robot/NC 530 | 15 25 15 30 50 30 . . . . 55 . . . . 10 30 10 5 90 35 . . 60 30 10 20 . 10 Destroy Leader 414 | . 24 64 50 94 10 . . . 10 16 . . . 10 2 46 . . 8 20 10 . 18 2 12 6 10 2 Allied During Kill 518 | . . . . . . . . . . . . . . . . 407 93 18 . . . . . . . . . . Successful Hack 659 | . 19 17 . . 37 . . . . 106 . . . . 28 29 . . 6 12 62 . 89 115 93 10 . 36 Select Force Hacks 30 | . . . . . . . . . . 30 . . . . . . . . . . . . . . . . . . Disable Machine 480 | . . 30 . 30 . . . . . . . . . . . . . . 135 45 75 . . 75 . 60 . 30 Destroy Structure 2798 | . . 16 6 33 36 . . . . 37 . . . . 48 110 32 . 446 118 72 . 42 44 63 12 15 1668 Advance Influence 150 | . . . . . . . . . . . . . . . 150 . . . . . . . . . . . . . Partial Spotted 1005 | . . . . . 45 . . . . 60 . . . . 45 150 . 60 30 45 90 . 75 120 150 60 30 45 Lose Combat Pursuer 1695 | . 30 60 . 30 15 . 45 . . 120 . 15 . . 45 450 . . 30 360 210 . 30 . 75 . 150 30 Influence Decreases 8546 | 15 178 391 335 415 317 . 8 37 90 297 147 15 20 30 283 1048 618 320 275 1287 261 475 206 283 568 135 102 390 Entered New Map 2532 | . . . 42 13 68 . . 37 . . 56 . . . . 24 370 310 195 403 81 475 . 83 128 65 72 110 Time Decay 4403 | 15 158 371 273 352 247 . 8 . 60 287 91 15 20 30 273 565 238 10 60 434 170 . 196 180 170 70 30 80 Search Patrol Dispatched 200 | . . . . . . . . . . . . . . . . . . . . 100 . . . . 100 . . . Lost Part 450 | . 20 20 20 50 . . . . 30 . . . . . . 30 10 . 20 30 10 . . . 10 . . 200 Lost Ally 462 | . . . . . 2 . . . . 10 . . . . 10 380 . . . 20 . . 10 20 10 . . . Purge Threat 499 | . . . . . . . . . . . . . . . . 49 . . . 300 . . . . 150 . . . Squads Dispatched 58 | . 1 2 1 2 5 . . . . 13 . . . . 6 3 . . . 8 3 . 4 2 5 2 . 1 Investigation 15 | . . 2 . . 1 . . . . 5 . . . . 3 . . . . 4 . . . . . . . . Extermination 19 | . . . . . 3 . . . . 3 . . . . 2 . . . . 3 1 . 1 2 2 1 . 1 Reinforcement 21 | . 1 . 1 1 1 . . . . 5 . . . . 1 1 . . . 1 2 . 3 . 3 1 . . Assault 2 | . . . . . . . . . . . . . . . . 2 . . . . . . . . . . . . Garrison 1 | . . . . 1 . . . . . . . . . . . . . . . . . . . . . . . . Intercept . | . . . . . . . . . . . . . . . . . . . . . . . . . . . . . Searches Triggered 2 | . . . . . . . . . . . . . . . . . . . . 1 . . . . 1 . . . Unchained Authorized 3 | . . . . . . . . . . . . . . . . . . . . 1 1 . . 1 . . . . Construction Impeded . | . . . . . . . . . . . . . . . . . . . . . . . . . . . . . Haulers Reinforced 2 | . . . . . . . . . . 1 . . . . 1 . . . . . . . . . . . . . Active Scanning Responses . | . . . . . . . . . . . . . . . . . . . . . . . . . . . . . Cargo Convoy Interrupts . | . . . . . . . . . . . . . . . . . . . . . . . . . . . . . Stealth | -11 -10 -9 -9 -8 -7 -7 -7 -7 -6 -6 -6 -6 -6 -5 -5 -5 -5 -5 -5 -4 -4 -4 -3 -3 -2 -2 -1 -1 --------- Run | Yrd Mat Mat Sto Mat Fac Low Low Zio Pro Fac Low Low Dat Pro Fac Ext Cet Arc Hub Fac Arm Lab Res Tes Res Qua Acc Com Distress Signals 27 | . 1 2 . 6 1 . . . . . . . . . 1 5 2 . 2 1 2 . 2 . 2 . . . Communications Jammed 37 | . . . . . . . . . . . . . . . . . . . . 7 . . . 20 1 3 1 5 Distress Signals 37 | . . . . . . . . . . . . . . . . . . . . 7 . . . 20 1 3 1 5 Times Spotted 353 | . 12 17 10 37 10 3 4 . 2 20 . 3 2 2 5 48 8 4 13 41 26 . 17 13 21 5 12 18 Peak Tracking Total 16 | . 4 4 4 5 4 3 4 . 2 11 . 1 2 1 3 12 5 3 8 12 16 . 4 6 7 1 14 13 Tactical Retreats 62 | . 1 4 . 1 2 . 1 . . 5 . 2 . . 2 18 . . 2 11 4 . 2 1 4 . 1 1 ECM-based Alert Blocks 13 | . . . . . 3 . . . . 5 . . . . 1 . . . . 2 . . 1 1 . . . . Traps | -11 -10 -9 -9 -8 -7 -7 -7 -7 -6 -6 -6 -6 -6 -5 -5 -5 -5 -5 -5 -4 -4 -4 -3 -3 -2 -2 -1 -1 ------- Run | Yrd Mat Mat Sto Mat Fac Low Low Zio Pro Fac Low Low Dat Pro Fac Ext Cet Arc Hub Fac Arm Lab Res Tes Res Qua Acc Com Traps Triggered 28 | . 1 1 . . . . . . . 2 . . . . . 2 . . 2 6 . . 1 . 1 . . 12 Indirectly 2 | . . . . . . . . . . . . . . . . . . . 2 . . . . . . . . . Trap Hack Attempts . | . . . . . . . . . . . . . . . . . . . . . . . . . . . . . Triggered . | . . . . . . . . . . . . . . . . . . . . . . . . . . . . . Disarmed . | . . . . . . . . . . . . . . . . . . . . . . . . . . . . . Reprogrammed . | . . . . . . . . . . . . . . . . . . . . . . . . . . . . . Reused . | . . . . . . . . . . . . . . . . . . . . . . . . . . . . . Traps Extracted . | . . . . . . . . . . . . . . . . . . . . . . . . . . . . . Installed . | . . . . . . . . . . . . . . . . . . . . . . . . . . . . . Triggered . | . . . . . . . . . . . . . . . . . . . . . . . . . . . . . Machines | -11 -10 -9 -9 -8 -7 -7 -7 -7 -6 -6 -6 -6 -6 -5 -5 -5 -5 -5 -5 -4 -4 -4 -3 -3 -2 -2 -1 -1 ---------- Run | Yrd Mat Mat Sto Mat Fac Low Low Zio Pro Fac Low Low Dat Pro Fac Ext Cet Arc Hub Fac Arm Lab Res Tes Res Qua Acc Com Machines Disabled 39 | . . 2 . 2 . . . . 1 . . . 1 . . . . . 9 3 5 3 . 6 . 5 . 2 Max in Single Turn 4 | . . 1 . 1 . . . . 1 . . . 1 . . . . . 4 2 2 1 . 1 . 3 . 2 Garrison Access 10 | . . . . . . . . . . 1 . . . . . . . . . 4 . . 2 1 1 . 1 . Network Hub 2 | . . . . . . . . . . . . . . . . . . . 2 . . . . . . . . . Machines Repaired . | . . . . . . . . . . . . . . . . . . . . . . . . . . . . . Machines Dismantled . | . . . . . . . . . . . . . . . . . . . . . . . . . . . . . Machines Sabotaged . | . . . . . . . . . . . . . . . . . . . . . . . . . . . . . Overloaded Fab Kills . | . . . . . . . . . . . . . . . . . . . . . . . . . . . . . Hacking | -11 -10 -9 -9 -8 -7 -7 -7 -7 -6 -6 -6 -6 -6 -5 -5 -5 -5 -5 -5 -4 -4 -4 -3 -3 -2 -2 -1 -1 --------- Run | Yrd Mat Mat Sto Mat Fac Low Low Zio Pro Fac Low Low Dat Pro Fac Ext Cet Arc Hub Fac Arm Lab Res Tes Res Qua Acc Com Machines Accessed 136 | . 2 7 5 1 12 . . . 1 20 1 . 3 . 7 8 . . 1 24 4 . 7 9 7 7 5 5 Terminals 86 | . 2 4 3 1 7 . . . . 11 1 . . . 4 8 . . 1 11 4 . 3 7 4 7 4 4 Fabricators 12 | . . . . . 1 . . . . 3 . . . . 2 . . . . 5 . . . . 1 . . . Repair Stations 11 | . . 2 1 . . . . . . 2 . . . . 1 . . . . 4 . . . 1 . . . . Recycling Units 6 | . . . 1 . 1 . . . . 1 . . . . . . . . . . . . 1 . 1 . . 1 Scanalyzers 5 | . . 1 . . 1 . . . . 2 . . . . . . . . . . . . 1 . . . . . Garrison Access 12 | . . . . . 2 . . . . 1 . . . . . . . . . 4 . . 2 1 1 . 1 . Total Hacks 553 | . 12 26 10 2 22 . . . 1 85 1 . 25 . 44 21 . . 6 111 26 . 39 36 39 15 11 21 Successful 333 | . 7 16 6 . 6 . . . 1 62 1 . 25 . 28 10 . . 5 71 10 . 18 21 20 12 6 8 Failed 216 | . 5 9 4 2 15 . . . . 22 . . . . 16 11 . . 1 40 16 . 20 15 19 3 5 13 Catastrophic 31 | . . 1 1 1 3 . . . . 5 . . . . 2 1 . . . 2 2 . 6 3 1 . . 3 Database Lockouts 4 | . . 1 . . 1 . . . . 1 . . . . . . . . . . . . 1 . . . . . Manual 230 | . 11 9 6 2 12 . . . . 39 . . . . 23 4 1 . 3 50 15 . 13 9 15 6 . 12 Terminals 396 | . 12 14 6 2 14 . . . . 60 1 . . . 34 21 . . 6 75 26 . 26 29 31 15 7 17 Fabricators 30 | . . . . . 2 . . . . 8 . . . . 4 . . . . 14 . . . . 2 . . . Repair Stations 35 | . . 6 2 . . . . . . 3 . . . . 6 . . . . 12 . . . 6 . . . . Recycling Units 16 | . . . 2 . 1 . . . . 2 . . . . . . . . . . . . 3 . 4 . . 4 Scanalyzers 24 | . . 6 . . 2 . . . . 11 . . . . . . . . . . . . 5 . . . . . Garrison Access 26 | . . . . . 3 . . . . 1 . . . . . . . . . 10 . . 5 1 2 . 4 . Terminal Hacks 196 | . 3 4 . . 1 . . . 1 31 1 . 25 . 11 9 . . 3 40 9 . 10 12 14 10 5 7 Record 12 | . . . . . . . . . 1 . 1 . 6 . . . . . . . 1 . . 2 . 1 . . Part Schematic 17 | . . . . . . . . . . 2 . . 12 . . . . . . 3 . . . . . . . . Robot Schematic 4 | . . . . . . . . . . . . . 4 . . . . . . . . . . . . . . . Robot Analysis 11 | . 2 . . . . . . . . 1 . . . . . . . . . 1 1 . . 2 2 2 . . Prototype ID Bank 16 | . 1 1 . . . . . . . 2 . . 3 . . 1 . . . 3 . . 1 2 1 1 . . Open Door 10 | . . . . . . . . . . . . . . . . 5 . . . . . . . . . 2 3 . Level Access Points 3 | . . . . . . . . . . . . . . . . . . . . . . . . 1 1 . . 1 Branch Access Points 7 | . . . . . 1 . . . . 1 . . . . 1 . . . . 1 . . 1 . 1 . 1 . Emergency Access Points 4 | . . . . . . . . . . 2 . . . . . . . . . 1 . . 1 . . . . . Machine Index 5 | . . . . . . . . . . . . . . . . . . . 1 1 . . 1 . 1 1 . . Terminal Index 5 | . . . . . . . . . . . . . . . 1 . . . . 1 . . . 1 1 . 1 . Fabricator Index 3 | . . . . . . . . . . . . . . . 1 . . . . 1 . . . . 1 . . . Alert Level 12 | . . . . . . . . . . 2 . . . . . . . . . 4 1 . 2 1 1 1 . . Unreport Threat 4 | . . . . . . . . . . . . . . . . 1 . . . 2 . . . . 1 . . . Locate Traps 13 | . . . . . . . . . . 1 . . . . . 1 . . 1 4 3 . . 2 . . . 1 Dispatch Records 1 | . . 1 . . . . . . . . . . . . . . . . . . . . . . . . . . Maintenance Status 2 | . . . . . . . . . . . . . . . 1 . . . . 1 . . . . . . . . Security Status 4 | . . . . . . . . . . 2 . . . . . . . . . 1 . . . . . . . 1 Surveillance Status 3 | . . . . . . . . . . 1 . . . . . . . . . 1 . . . . . . . 1 Patrol Status 9 | . . . . . . . . . . 3 . . . . 2 . . . . 3 . . 1 . . . . . Transport Status 3 | . . 1 . . . . . . . 1 . . . . 1 . . . . . . . . . . . . . Recall Investigation 8 | . . . . . . . . . . 3 . . . . 1 . . . . 3 . . . . 1 . . . Recall Extermination 7 | . . . . . . . . . . 2 . . . . 1 . . . . 2 . . 1 . . . . 1 Recall Reinforcements 4 | . . . . . . . . . . 2 . . . . . 1 . . . 1 . . . . . . . . Hauler Manifests 4 | . . . . . . . . . . 1 . . . . 1 . . . 1 1 . . . . . . . . Registered Components 4 | . . . . . . . . . . 2 . . . . . . . . . 1 . . . . 1 . . . Registered Prototypes 1 | . . . . . . . . . . 1 . . . . . . . . . . . . . . . . . . Zone Layout 20 | . . 1 . . . . . . . 2 . . . . 1 . . . . 4 3 . 2 1 2 2 . 2 Fabricator Hacks 22 | . . . . . . . . . . 7 . . . . 4 . . . . 9 . . . . 2 . . . Network Status 1 | . . . . . . . . . . . . . . . . . . . . . . . . . 1 . . . Load Schematic 11 | . . . . . . . . . . 3 . . . . 2 . . . . 5 . . . . 1 . . . Build 10 | . . . . . . . . . . 4 . . . . 2 . . . . 4 . . . . . . . . Repair Station Hacks 28 | . . 6 2 . . . . . . 2 . . . . 6 . . . . 9 . . . 3 . . . . Scan Component 14 | . . 3 1 . . . . . . 1 . . . . 3 . . . . 5 . . . 1 . . . . Repair 13 | . . 3 1 . . . . . . 1 . . . . 3 . . . . 4 . . . 1 . . . . Refit 1 | . . . . . . . . . . . . . . . . . . . . . . . . 1 . . . . Recycling Unit Hacks 6 | . . . 1 . 1 . . . . . . . . . . . . . . . . . 2 . 1 . . 1 Report Inventory 2 | . . . 1 . 1 . . . . . . . . . . . . . . . . . . . . . . . Retrieve Components 4 | . . . . . . . . . . . . . . . . . . . . . . . 2 . 1 . . 1 Scanalyzer 17 | . . 5 . . 1 . . . . 10 . . . . . . . . . . . . 1 . . . . . Insert Component 4 | . . 1 . . . . . . . 3 . . . . . . . . . . . . . . . . . . Analyze 6 | . . 1 . . . . . . . 5 . . . . . . . . . . . . . . . . . . Retrieve Study 7 | . . 3 . . 1 . . . . 2 . . . . . . . . . . . . 1 . . . . . Garrison Access Hacks 10 | . . . . . . . . . . 1 . . . . . . . . . 4 . . 2 1 1 . 1 . Seal Access 10 | . . . . . . . . . . 1 . . . . . . . . . 4 . . 2 1 1 . 1 . Unauthorized Hacks 54 | . 4 1 3 . 3 . . . . 11 . . . . 7 1 . . 2 9 1 . 3 5 2 2 . . Terminals 50 | . 4 1 2 . 3 . . . . 10 . . . . 7 1 . . 2 7 1 . 3 5 2 2 . . Track 2 | . . . 1 . . . . . . . . . . . 1 . . . . . . . . . . . . . Assimilate 12 | . . . . . 1 . . . . 1 . . . . 1 1 . . 1 2 . . 1 3 1 . . . Botnet 24 | . 2 1 1 . 2 . . . . 4 . . . . 2 . . . 1 3 1 . 2 2 1 2 . . Skim 12 | . 2 . . . . . . . . 5 . . . . 3 . . . . 2 . . . . . . . . Fabricators 2 | . . . . . . . . . . . . . . . . . . . . 2 . . . . . . . . Prioritize 1 | . . . . . . . . . . . . . . . . . . . . 1 . . . . . . . . Recompile 1 | . . . . . . . . . . . . . . . . . . . . 1 . . . . . . . . Repair Stations . | . . . . . . . . . . . . . . . . . . . . . . . . . . . . . Recycling Units 2 | . . . 1 . . . . . . 1 . . . . . . . . . . . . . . . . . . Mask 1 | . . . 1 . . . . . . . . . . . . . . . . . . . . . . . . . Tunnel 1 | . . . . . . . . . . 1 . . . . . . . . . . . . . . . . . . Scanalyzers . | . . . . . . . . . . . . . . . . . . . . . . . . . . . . . Garrison Access . | . . . . . . . . . . . . . . . . . . . . . . . . . . . . . Data Cores Recovered 2 | . . . . . . . . . . . . . . . . 1 . . . . . . 1 . . . . . Used 2 | . . . . . . . . . . . . . . . . 1 . . . . . . 1 . . . . . Hacking Detections 84 | . 2 6 4 1 12 . . . . 15 . . . . 7 4 . . 1 10 2 . 5 3 5 3 2 2 Full Trace Events 13 | . 1 1 . . 1 . . . . 4 . . . . 3 . . . . 3 . . . . . . . . Feedback Events 1 | . 1 . . . . . . . . . . . . . . . . . . . . . . . . . . . Corruption 1 | . 1 . . . . . . . . . . . . . . . . . . . . . . . . . . . Feedback Blocked . | . . . . . . . . . . . . . . . . . . . . . . . . . . . . . Robot Schematics Acquired 7 | . . . . . . . . 3 . . . . 4 . . . . . . . . . . . . . . . Robots Built . | . . . . . . . . . . . . . . . . . . . . . . . . . . . . . Authchips . | . . . . . . . . . . . . . . . . . . . . . . . . . . . . . Time . | . . . . . . . . . . . . . . . . . . . . . . . . . . . . . Total Robot Build Rating . | . . . . . . . . . . . . . . . . . . . . . . . . . . . . . Part Schematics Acquired 36 | . . 1 . . . . . 15 . 5 . . 12 . . . . . . 3 . . . . . . . . Parts Built 12 | . . . . . . . . . . 6 . . . . 2 . . . . 4 . . . . . . . . Authchips 1 | . . . . . . . . . . . . . . . . . . . . 1 . . . . . . . . Time 718 | . . . . . . . . . . 185 . . . . 253 . . . . 280 . . . . . . . . Total Part Build Rating 60 | . . . . . . . . . . 24 . . . . 12 . . . . 24 . . . . . . . . Part Studies Acquired 7 | . . 3 . . 1 . . . . 2 . . . . . . . . . . . . 1 . . . . . Parts Repaired 13 | . . 3 1 . . . . . . 1 . . . . 3 . . . . 4 . . . 1 . . . . Time 500 | . . 102 26 . . . . . . 23 . . . . 127 . . . . 206 . . . 16 . . . . Parts Recycled . | . . . . . . . . . . . . . . . . . . . . . . . . . . . . . Recycled Matter . | . . . . . . . . . . . . . . . . . . . . . . . . . . . . . Retrieved Matter . | . . . . . . . . . . . . . . . . . . . . . . . . . . . . . Retrieved Components 4 | . . . . . . . . . . . . . . . . . . . . . . . . . 1 . . 3 Parts Scanalyzed 4 | . . 1 . . . . . . . 3 . . . . . . . . . . . . . . . . . . Part Schematics Acquired 4 | . . 1 . . . . . . . 3 . . . . . . . . . . . . . . . . . . Parts Damaged 1 | . . . . . . . . . . 1 . . . . . . . . . . . . . . . . . . Bothacking | -11 -10 -9 -9 -8 -7 -7 -7 -7 -6 -6 -6 -6 -6 -5 -5 -5 -5 -5 -5 -4 -4 -4 -3 -3 -2 -2 -1 -1 ------------ Run | Yrd Mat Mat Sto Mat Fac Low Low Zio Pro Fac Low Low Dat Pro Fac Ext Cet Arc Hub Fac Arm Lab Res Tes Res Qua Acc Com Used RIF Installer . | . . . . . . . . . . . . . . . . . . . . . . . . . . . . . Robots Hacked . | . . . . . . . . . . . . . . . . . . . . . . . . . . . . . Non-combat . | . . . . . . . . . . . . . . . . . . . . . . . . . . . . . Combat . | . . . . . . . . . . . . . . . . . . . . . . . . . . . . . Robot Hacks Applied . | . . . . . . . . . . . . . . . . . . . . . . . . . . . . . Relay Couplers Released . | . . . . . . . . . . . . . . . . . . . . . . . . . . . . . Fabnet Peak Effective % . | . . . . . . . . . . . . . . . . . . . . . . . . . . . . . Robots Rewired 14 | . . . . . . . . . . . . . . . . 14 . . . . . . . . . . . . Allies Hacked . | . . . . . . . . . . . . . . . . . . . . . . . . . . . . . Hacks Repelled . | . . . . . . . . . . . . . . . . . . . . . . . . . . . . . Allies | -11 -10 -9 -9 -8 -7 -7 -7 -7 -6 -6 -6 -6 -6 -5 -5 -5 -5 -5 -5 -4 -4 -4 -3 -3 -2 -2 -1 -1 -------- Run | Yrd Mat Mat Sto Mat Fac Low Low Zio Pro Fac Low Low Dat Pro Fac Ext Cet Arc Hub Fac Arm Lab Res Tes Res Qua Acc Com Total Allies 37 | . . . . . 1 . . . . 1 . . . . 1 22 5 . 1 2 . . 1 2 1 . . . Largest Group 18 | . . . . . 1 . . . . 1 . . . . 1 18 6 3 1 1 . . 1 1 1 . . . Highest-Rated Group 659 | . . . . . 10 . . . . 26 . . . . 10 659 633 281 10 10 . . 45 26 45 . . . Highest-Rated Ally 159 | . . . . . 10 . . . . 26 . . . . 10 159 159 96 10 10 . . 45 26 45 . . . Total Orders 12 | . . . . . . . . . . . . . . . . 9 3 . . . . . . . . . . . STAY 7 | . . . . . . . . . . . . . . . . 5 2 . . . . . . . . . . . FOLLOW 5 | . . . . . . . . . . . . . . . . 4 1 . . . . . . . . . . . Ally Attacks 253 | . . . . . . . . . . . . . . . . 200 51 2 . . . . . . . . . . Total Damage 5762 | . . . . . . . . . . . . . . . . 3830 1842 90 . . . . . . . . . . Kills 29 | . . . . . . . . . . . . . . . . 23 5 1 . . . . . . . . . . Allies Corrupted 2 | . . . . . . . . . . . . . . . . . . . . 1 . . . 1 . . . . Allies Melted . | . . . . . . . . . . . . . . . . . . . . . . . . . . . . . Intel | -11 -10 -9 -9 -8 -7 -7 -7 -7 -6 -6 -6 -6 -6 -5 -5 -5 -5 -5 -5 -4 -4 -4 -3 -3 -2 -2 -1 -1 ------- Run | Yrd Mat Mat Sto Mat Fac Low Low Zio Pro Fac Low Low Dat Pro Fac Ext Cet Arc Hub Fac Arm Lab Res Tes Res Qua Acc Com Active Infowar (turns) 14504 | 11 357 2298 1200 479 640 265 542 263 894 1025 300 347 124 626 662 1244 15 . 84 1063 350 176 423 369 354 145 79 169 Optics 2696 | . . . . . . . . . . . . . . . . . . . . 631 350 176 423 369 354 145 79 169 Sensors 8927 | . . . . . 566 263 542 261 892 1020 300 346 18 590 618 889 15 . 84 928 285 176 310 276 344 120 79 5 Terrain 80 | . . . . . . . . . . . . . . . . . . . . . . . 1 79 . . . . Structural 4471 | . . . 1200 479 264 175 531 263 592 36 . . . . . . . . . . . . 380 170 324 57 . . Seismic 8033 | 11 357 2298 . . . . . . . 607 300 328 124 626 661 416 . . 83 622 117 16 385 356 351 145 79 151 Machine Analysis 297 | . . . . . 297 . . . . . . . . . . . . . . . . . . . . . . . Cloaking 134 | . . . . . . . . . . . . . . . . . . . . . 64 . . . . 1 10 59 Jamming 548 | . . . . . . . . . . . . . . 2 . . . . . 114 . . 72 174 69 35 55 27 ECM 448 | . . . . . 41 . . . . 72 . 22 . . 142 . . . . 35 . . 76 53 5 2 . . Robot Analysis Total 11 | . 2 . . . . . . . . 1 . . . . . . . . . 1 1 . . 2 2 2 . . Derelict Logs Recovered 8 | . . . . . . 1 2 2 . . 2 1 . . . . . . . . . . . . . . . . Drone Launches . | . . . . . . . . . . . . . . . . . . . . . . . . . . . . . Drone Recoveries . | . . . . . . . . . . . . . . . . . . . . . . . . . . . . . Exploration | -11 -10 -9 -9 -8 -7 -7 -7 -7 -6 -6 -6 -6 -6 -5 -5 -5 -5 -5 -5 -4 -4 -4 -3 -3 -2 -2 -1 -1 ------------- Run | Yrd Mat Mat Sto Mat Fac Low Low Zio Pro Fac Low Low Dat Pro Fac Ext Cet Arc Hub Fac Arm Lab Res Tes Res Qua Acc Com Turns Passed 21543 | 91 596 3132 2736 3753 645 268 542 263 899 1036 300 347 124 626 686 1689 515 36 130 1064 350 176 423 369 354 145 79 169 Spaces Moved 24532 | 48 372 401 236 310 1549 615 858 897 991 2321 717 986 128 762 1393 1903 239 78 317 2801 660 236 1540 1147 1310 658 435 624 Core 1367 | 48 372 401 234 310 . . . . . . . . . . . . . . . . . . . . . . . 2 Treads . | . . . . . . . . . . . . . . . . . . . . . . . . . . . . . Legs . | . . . . . . . . . . . . . . . . . . . . . . . . . . . . . Wheels . | . . . . . . . . . . . . . . . . . . . . . . . . . . . . . Hover . | . . . . . . . . . . . . . . . . . . . . . . . . . . . . . Flight 23165 | . . . 2 . 1549 615 858 897 991 2321 717 986 128 762 1393 1903 239 78 317 2801 660 236 1540 1147 1310 658 435 622 Fastest Speed 5 | 50 50 150 40 900 28 28 28 28 27 26 26 26 26 26 20 5 17 5 5 7 7 15 14 5 5 10 5 5 Average Speed 58 | 50 108 717 1091 1104 28 28 29 28 28 27 26 26 26 26 24 20 53 13 20 20 22 19 14 11 10 10 9 10 Slowest Speed 1400 | 50 1400 1400 1250 1250 101 28 100 28 29 29 26 26 26 26 29 97 94 20 94 31 102 20 15 94 84 84 10 100 Overloaded Moves 512 | . . . . . . . . . . . . . . . . 14 4 32 37 126 109 . . 44 42 . 17 87 Propulsion Burnouts . | . . . . . . . . . . . . . . . . . . . . . . . . . . . . . Robots Hopped 88 | . . . . . 5 . . . . 3 . . . . 1 8 . 1 4 27 1 . 11 7 11 1 3 5 Potential Cave-ins . | . . . . . . . . . . . . . . . . . . . . . . . . . . . . . Cave-ins Triggered . | . . . . . . . . . . . . . . . . . . . . . . . . . . . . . Teleports 1 | . . . . . . . . . . . . . . . . . . . . . . 1 . . . . . . Exploration Rate (%) 58 | 3 53 37 43 33 46 77 93 85 88 64 86 91 80 72 24 86 57 79 32 60 51 96 32 90 39 64 19 26 Regions Visited 28 Branch Regions 18 Pre-discovered Areas 5 | . . . . . . . . 2 . 1 . 1 1 . . . . . . . . . . . . . . . Known Exits Taken 23 | . . . . . 1 1 1 1 1 1 1 1 1 1 1 1 1 1 1 1 1 1 1 1 1 1 1 . Unknown Exits Taken 5 | 1 1 1 1 1 . . . . . . . . . . . . . . . . . . . . . . . . Scrap Searched 19 | . . . . . . . 3 5 4 . 2 5 . . . . . . . . . . . . . . . . Spaces Dug 1224 | . . . . 14 36 . 94 . 43 37 1 2 1 13 24 25 . . . 48 8 . 7 17 20 4 5 825 Terrain Destroyed 1724 | . . 14 4 33 36 . 108 . 51 37 1 2 1 13 24 78 . . 338 56 35 . 19 19 21 4 5 825 Melee 236 | . . . . 4 36 . 3 . 14 37 1 2 1 13 24 4 . . . 47 8 . 6 14 13 4 5 . Projectile 32 | . . . 4 12 . . . . . . . . . . . . . . 1 1 . . 1 5 8 . . . AOE 1456 | . . 14 . 17 . . 105 . 37 . . . . . . 74 . . 337 8 27 . 12 . . . . 825 Terrain Rammed . | . . . . . . . . . . . . . . . . . . . . . . . . . . . . . Walls Destroyed . | . . . . . . . . . . . . . . . . . . . . . . . . . . . . . Machines Disabled . | . . . . . . . . . . . . . . . . . . . . . . . . . . . . . Actions | -11 -10 -9 -9 -8 -7 -7 -7 -7 -6 -6 -6 -6 -6 -5 -5 -5 -5 -5 -5 -4 -4 -4 -3 -3 -2 -2 -1 -1 --------- Run | Yrd Mat Mat Sto Mat Fac Low Low Zio Pro Fac Low Low Dat Pro Fac Ext Cet Arc Hub Fac Arm Lab Res Tes Res Qua Acc Com Total 30378 | 89 537 596 356 508 1686 710 1129 906 1557 2601 827 1069 169 1151 1694 3091 566 97 359 3140 842 337 1696 1318 1478 707 450 712 Wait 4210 | 4 117 101 41 87 38 88 253 . 533 170 109 79 12 363 218 911 269 14 23 200 152 69 99 76 111 11 3 59 Move 24332 | 47 371 400 235 309 1538 614 857 896 990 2314 716 985 127 761 1390 1886 238 75 309 2748 657 235 1518 1132 1287 655 428 614 Hop 83 | . . . . . 5 . . . . 3 . . . . 1 8 . 1 3 25 1 . 10 7 11 1 3 4 Pick Up 198 | 5 11 24 23 8 12 2 . 3 1 15 . . 2 1 14 22 3 . 2 20 3 3 10 5 4 3 1 1 Fast Attach 88 | 2 4 7 10 4 4 . . 1 . 4 . . . 1 7 1 . 2 1 9 . 5 7 13 2 2 1 1 Attach 104 | 1 2 6 2 4 11 . 3 . 2 5 . 1 1 1 7 10 2 1 4 10 4 2 5 7 5 2 2 4 Detach 67 | . 1 1 2 3 3 1 2 . 1 4 . . 1 . 4 7 1 2 1 7 3 1 5 8 4 2 1 2 Swap 169 | . . 12 1 13 5 3 2 2 4 12 1 1 2 3 7 16 4 . 4 26 8 . 11 15 10 7 . . Drop 171 | . 7 10 11 6 19 2 . 3 . 15 . . . . 15 18 5 . . 12 1 4 9 16 7 7 . 4 Fire 358 | 30 23 35 31 70 1 . 7 . 3 . . . . . . 92 29 . 9 2 2 . 2 12 8 1 . 1 Melee 451 | . . . . 4 50 . 5 1 23 59 1 3 24 21 31 12 15 2 3 66 11 18 20 27 23 16 11 5 Ram 1 | . 1 . . . . . . . . . . . . . . . . . . . . . . . . . . . Kick . | . . . . . . . . . . . . . . . . . . . . . . . . . . . . . Crush . | . . . . . . . . . . . . . . . . . . . . . . . . . . . . . Escape Stasis 68 | . . . . . . . . . . . . . . . . 30 . . . 15 . . . . 6 . . 17 Rewire 78 | . . . . . . . . . . . . . . . . 78 . . . . . . . . . . . . Trap . | . . . . . . . . . . . . . . . . . . . . . . . . . . . . . Miscellaneous . | . . . . . . . . . . . . . . . . . . . . . . . . . . . . . Route ------- -11/Scrapyard -10/Materials (discovered 2 exits: *Mat / [*Min]) -9/Materials (discovered 2 exits: *Sto x2) -9/Storage -8/Materials -7/Factory (discovered 4 exits: *Fac x2 / *Low x2) -7/Lower Caves -7/Lower Caves (discovered 2 exits: *Fac / *Zio) -7/Zion -6/Proximity Caves -6/Factory (discovered 5 exits: *Fac x3 / *Low x2) -6/Lower Caves -6/Lower Caves -6/Data Miner -5/Proximity Caves -5/Factory (discovered 5 exits: *Fac / Upp x2 / *Ext x2) -5/Extension (discovered 2 exits: *Fac / *Cet) -5/Cetus (discovered 2 exits: *Fac / *Arc) -5/Archives (discovered 2 exits: *Fac / *Hub) -5/Hub_04(d) (discovered 2 exits: *Fac x2) -4/Factory (discovered 5 exits: *Res x2 / *Upp x2 / *Arm) -4/Armory -4/Lab -3/Research (discovered 2 exits: *Tes x2) -3/Testing -2/Research (discovered 5 exits: *Acc x3 / *Qua x2) -2/Quarantine -1/Access -1/Command (discovered 2 exits: *Sur x2) Tau Ceti IV Orbit History --------- Turn | Location | Event 7 | -11/Scrapyard | Discovered new exit (range 16) 92 | -11/Scrapyard | Entered Materials 122 | -10/Materials | Discovered new exit (range 4) 316 | -10/Materials | Build established: Mutant 455 | -10/Materials | Discovered new exit (range 15) 519 | -10/Materials | Core integrity fell below 50% 688 | -10/Materials | Entered another Materials area 688 | -9/Materials | Evolved 2 slots: Utility x2 1018 | -9/Materials | Lost 3 parts (1u2w) 2044 | -9/Materials | Repaired Seismic Detector 2447 | -9/Materials | Discovered new exit (range 5) 3304 | -9/Materials | Central database locked down 3304 | -9/Materials | Discovered new exit (range 15) 3538 | -9/Materials | Repaired Hrd. Medium Armor Plating 3577 | -9/Materials | Repaired Assault Cannon 3820 | -9/Materials | Entered Storage 3919 | -9/Storage | Core integrity fell below 50% 3933 | -9/Storage | Released all parts (7) 4708 | -9/Storage | Repaired Flight Unit 6496 | -9/Storage | Discovered new exit (range 6) 6556 | -9/Storage | Entered Materials 6556 | -8/Materials | Evolved 2 slots: Propulsion x2 8407 | -8/Materials | Garrison activated, responded to threat 10107 | -8/Materials | Discovered new exit (range 3) 10309 | -8/Materials | Entered Factory 10309 | -7/Factory | Evolved 2 slots: Propulsion x1, Utility x1 10347 | -7/Factory | Central database locked down 10356 | -7/Factory | Discovered new exit (range 12) 10360 | -7/Factory | Identified exit to Factory 10655 | -7/Factory | Discovered exit to Factory (range 11) 10669 | -7/Factory | Build established: Scout 10692 | -7/Factory | Identified exit to Lower Caves 10954 | -7/Factory | Entered Lower Caves 11166 | -7/Lower Caves | Encountered a Warlord checkpoint 11212 | -7/Lower Caves | Learned Factory terminal intel 11214 | -7/Lower Caves | Discovered new exit (range 13) 11222 | -7/Lower Caves | Identified exit to Lower Caves 11222 | -7/Lower Caves | Entered another Lower Caves area 11255 | -7/Lower Caves | Discovered exit to Factory (range 5) 11258 | -7/Lower Caves | Learned 4 Factory zone layouts 11549 | -7/Lower Caves | Discovered new exit (range 13) 11759 | -7/Lower Caves | Learned Factory garrison access intel 11761 | -7/Lower Caves | Identified exit to Zion 11764 | -7/Lower Caves | Entered Zion 11779 | -7/Zion | Discovered new exit (range 15) 11828 | -7/Zion | Learned location of 1 exit from Lower Caves 11845 | -7/Zion | Learned 12 Factory zone layouts 11871 | -7/Zion | Visited the Megawrench Repair Shop 11874 | -7/Zion | Megawrench repaired 7 parts 11882 | -7/Zion | Found CR-A16's Pointy Stick 11917 | -7/Zion | Learned location of Armory (-4) 11943 | -7/Zion | Learned location of Warlord (-4) 11970 | -7/Zion | Met Imprinter 12027 | -7/Zion | Identified exit to Proximity Caves 12027 | -7/Zion | Entered Proximity Caves 12649 | -6/Proximity Caves | Lost 3 parts (1p2n) 12921 | -6/Proximity Caves | Discovered exit to Factory (range 12) 12926 | -6/Proximity Caves | Entered Factory 12926 | -6/Factory | Evolved 2 slots: Utility x2 12927 | -6/Factory | Identified exit to Factory 12928 | -6/Factory | Loaded intel: 26 terminal locations 12929 | -6/Factory | Loaded intel: 3 garrison access locations 12949 | -6/Factory | Discovered new exit (range 10) 13099 | -6/Factory | Central database locked down 13142 | -6/Factory | Spotted B-75 Beast 13145 | -6/Factory | Destroyed B-75 Beast 13156 | -6/Factory | Identified exit to Lower Caves 13219 | -6/Factory | Repaired Broken Stasis Canceller? 13271 | -6/Factory | Fabricated Imp. Transmission Jammer? 13376 | -6/Factory | Build established: Hacker-Sprinter 13497 | -6/Factory | Fabricated Cesium-ion Thruster? 13552 | -6/Factory | Fabricated Cesium-ion Thruster (x2) 13782 | -6/Factory | Discovered exit to Factory (range 11) 13925 | -6/Factory | Learned Extension trap positions 13962 | -6/Factory | Entered Lower Caves 13963 | -6/Lower Caves | Identified exit to Lower Caves 14110 | -6/Lower Caves | Encountered a Warlord checkpoint 14244 | -6/Lower Caves | Learned Factory stockpile data 14250 | -6/Lower Caves | Learned Factory trap positions 14262 | -6/Lower Caves | Entered another Lower Caves area 14366 | -6/Lower Caves | Attracted the attention of an 0b10 checkpoint 14435 | -6/Lower Caves | Discovered new exit (range 8) 14609 | -6/Lower Caves | Identified exit to Data Miner 14609 | -6/Lower Caves | Entered Data Miner 14609 | -6/Data Miner | Discovered new exit (range 6) 14614 | -6/Data Miner | Met Data Miner 14619 | -6/Data Miner | Learned location of Section 7 (-2) 14619 | -6/Data Miner | Acquired the access code to Warlord's prototype stash 14623 | -6/Data Miner | Received God Mode back door access code from Data Miner 14633 | -6/Data Miner | Destroyed Data Miner 14636 | -6/Data Miner | Found Prototype Hackware 14639 | -6/Data Miner | Found Prototype Hackware 14640 | -6/Data Miner | Data Conduit disabled 14733 | -6/Data Miner | Identified exit to Proximity Caves 14733 | -6/Data Miner | Entered Proximity Caves 14810 | -5/Proximity Caves | Spotted B-75 Beast 14840 | -5/Proximity Caves | Revealed the true nature of CR-A16's Pointy Stick 14843 | -5/Proximity Caves | Destroyed B-75 Beast 14924 | -5/Proximity Caves | Build established: Sprinter 15325 | -5/Proximity Caves | Spotter reported a threat 15342 | -5/Proximity Caves | Discovered exit to Factory (range 11) 15359 | -5/Proximity Caves | Entered Factory 15359 | -5/Factory | Evolved 2 slots: Power x1, Propulsion x1 15360 | -5/Factory | Loaded intel: 80 trap records 15370 | -5/Factory | Identified System Mapper 15375 | -5/Factory | Identified exit to Upper Caves 15375 | -5/Factory | Identified exit to Extension 15497 | -5/Factory | Repaired Lgt. Deuterium Engine 15536 | -5/Factory | Repaired Cesium-ion Thruster+ 15589 | -5/Factory | Repaired Imp. Flight Unit 15683 | -5/Factory | Build established: Hacker-Sprinter 15792 | -5/Factory | Discovered new exit (range 6) 15793 | -5/Factory | Identified exit to Factory 15820 | -5/Factory | Fabricated Cld. Nuclear Pulse Thruster? 15847 | -5/Factory | Fabricated Cld. Nuclear Pulse Thruster? 16045 | -5/Factory | Entered Extension 16046 | -5/Extension | Loaded intel: 22 trap records 16058 | -5/Extension | Rescued a captive Derelict 16058 | -5/Extension | Rescued a captive Derelict 17111 | -5/Extension | Build established: Commander-Sprinter 17120 | -5/Extension | Spotted B-75 Beast 17140 | -5/Extension | Destroyed B-75 Beast 17172 | -5/Extension | Spotted B-75 Beast 17182 | -5/Extension | Allies destroyed B-75 Beast 17318 | -5/Extension | Rescued a captive Derelict 17319 | -5/Extension | Rescued a captive Derelict 17419 | -5/Extension | Rescued a captive Derelict 17424 | -5/Extension | Rescued a captive Derelict 17426 | -5/Extension | Rescued a captive Derelict 17545 | -5/Extension | First assault squad dispatched 17560 | -5/Extension | Rescued A7 17682 | -5/Extension | Lost 16 allies 17724 | -5/Extension | Discovered exit to Factory (range 10) 17724 | -5/Extension | Discovered new exit (range 6) 17732 | -5/Extension | Identified exit to Cetus 17734 | -5/Extension | Entered Cetus 17734 | -5/Cetus | Accompanied by 1 ally (A7) 17739 | -5/Cetus | Acquired a Cetus Manufacturing Module code from A7 17746 | -5/Cetus | Spotted Cetus Guard 17747 | -5/Cetus | Spotted Cetus Guard 17764 | -5/Cetus | Destroyed Cetus Guard 17888 | -5/Cetus | Started Cetus Manufacturing Module 17913 | -5/Cetus | Manufactured an Enhanced Grunt 17938 | -5/Cetus | Manufactured an Enhanced Grunt 17963 | -5/Cetus | Manufactured an Enhanced Grunt 17988 | -5/Cetus | Manufactured an Enhanced Grunt 18013 | -5/Cetus | Manufactured an Enhanced Grunt 18040 | -5/Cetus | Discovered new exit (range 15) 18101 | -5/Cetus | Spotted Cetus Guard 18101 | -5/Cetus | Spotted Cetus Guard 18110 | -5/Cetus | Spotted Cetus Guard 18110 | -5/Cetus | Spotted Cetus Guard 18122 | -5/Cetus | Destroyed Cetus Guard 18127 | -5/Cetus | Destroyed Cetus Guard 18161 | -5/Cetus | Discovered exit to Factory (range 16) 18162 | -5/Cetus | Met Revision 17 18202 | -5/Cetus | Murdered A7 18204 | -5/Cetus | Extracted ID and sensor layout for unrecognized location from A7's data core 18210 | -5/Cetus | Identified exit to Archives 18249 | -5/Cetus | Entered Archives 18249 | -5/Archives | Accompanied by 3 allies 18275 | -5/Archives | Discovered exit to Factory (range 11) 18283 | -5/Archives | Discovered new exit (range 13) 18285 | -5/Archives | Identified exit to Hub_04(d) 18285 | -5/Archives | Entered Hub_04(d) 18295 | -5/Hub_04(d) | Discovered exit to Factory (range 11) 18312 | -5/Hub_04(d) | System corruption reached 10% 18366 | -5/Hub_04(d) | Network Hub disabled 18388 | -5/Hub_04(d) | Network Hub disabled 18396 | -5/Hub_04(d) | Spotted Lightning 18401 | -5/Hub_04(d) | Spotted Lightning 18401 | -5/Hub_04(d) | Spotted Lightning 18407 | -5/Hub_04(d) | Discovered exit to Factory (range 13) 18407 | -5/Hub_04(d) | Spotted Lightning 18408 | -5/Hub_04(d) | Spotted Lightning 18408 | -5/Hub_04(d) | Spotted Lightning 18415 | -5/Hub_04(d) | Entered Factory 18415 | -4/Factory | Evolved 2 slots: Propulsion x1, Utility x1 18415 | -4/Factory | Identified Quantum Router 18509 | -4/Factory | Spotted B-86 Titan 18510 | -4/Factory | Destroyed B-86 Titan 18526 | -4/Factory | Identified exit to Upper Caves 18526 | -4/Factory | Identified exit to Armory 18541 | -4/Factory | Discovered new exit (range 8) 18558 | -4/Factory | Repaired Med. Storage Unit? 18580 | -4/Factory | Repaired Broken Cld. Nuclear Pulse Thruster? 18582 | -4/Factory | Fabricated Exp. Cesium-ion Thruster? 18665 | -4/Factory | Search patrols dispatched 18931 | -4/Factory | Fabricated Exp. Cesium-ion Thruster? 19024 | -4/Factory | Repaired Cld. Cesium-ion Thruster? 19111 | -4/Factory | Repaired Lyr. Light Armor Plating? 19207 | -4/Factory | Fabricated Exp. Cesium-ion Thruster? 19223 | -4/Factory | Fabricated Exp. Cesium-ion Thruster? 19279 | -4/Factory | Unchained authorized (DW-4LL) 19401 | -4/Factory | DW-4LL burst out of a wall 19440 | -4/Factory | DW-4LL burst out of a wall 19447 | -4/Factory | Discovered new exit (range 17) 19479 | -4/Factory | Entered Armory 19532 | -4/Armory | Build established: Hacker-Scout 19698 | -4/Armory | Unchained authorized (DW-4LL) 19808 | -4/Armory | DW-4LL burst out of a wall 19826 | -4/Armory | Discovered new exit (range 5) 19829 | -4/Armory | Identified exit to Lab 19829 | -4/Armory | Entered Lab 19829 | -4/Lab | Discovered new exit (range 9) 19831 | -4/Lab | Identified exit to Research 19832 | -4/Lab | Hidden lab's door opened automatically 19832 | -4/Lab | Sensor layout match revealed 19833 | -4/Lab | Gained access to the hidden lab's interior 19853 | -4/Lab | Found Alien Artifact 19853 | -4/Lab | Identified Core Expander 19853 | -4/Lab | Installed Core Expander, added new Power slot 19884 | -4/Lab | Found Alien Artifact 19884 | -4/Lab | Identified Integrated Dissipator 19884 | -4/Lab | Installed Integrated Dissipator, increased core heat dissipation (+20) 19888 | -4/Lab | Found Alien Artifact 19888 | -4/Lab | Identified Transdimensional Reconstructor 19888 | -4/Lab | Warped through subspace 19895 | -4/Lab | Found Prototype Protection 19895 | -4/Lab | Identified Med. Regenerative Plating 19990 | -4/Lab | Found Prototype Hackware 19992 | -4/Lab | Found Prototype Energy Cannon 19992 | -4/Lab | Identified Warp Cannon 20004 | -4/Lab | Unable to decrypt terminal 20005 | -4/Lab | Unable to decrypt terminal 20005 | -4/Lab | Entered Research 20005 | -3/Research | Evolved 2 slots: Propulsion x1, Utility x1 20015 | -3/Research | Discovered new exit (range 11) 20027 | -3/Research | Central database locked down 20141 | -3/Research | Identified exit to Testing 20169 | -3/Research | Spotted B-86 Titan 20193 | -3/Research | Found Prototype Device 20193 | -3/Research | Identified Exp. Terrain Scanner 20205 | -3/Research | Revision forces began assault on 0b10 20245 | -3/Research | Found Gamma Bomb Array 20260 | -3/Research | Met up with Revision 17++ 20428 | -3/Research | Entered Testing 20462 | -3/Testing | Identified exit to Research 20501 | -3/Testing | Found Prototype Device 20501 | -3/Testing | Identified Exp. Shield Generator 20578 | -3/Testing | Repaired Adv. Sensor Array 20627 | -3/Testing | Unchained authorized (DW-4LL) 20774 | -3/Testing | Spotted Striker 20774 | -3/Testing | Spotted Striker 20779 | -3/Testing | Found Prototype Hackware 20793 | -3/Testing | Found Prototype Launcher 20797 | -3/Testing | Entered Research 20797 | -2/Research | Evolved 2 slots: Utility x2 20798 | -2/Research | Identified Deep Network Scanner 20833 | -2/Research | Identified exit to Access 20883 | -2/Research | Spotted B-90 Cyclops 20899 | -2/Research | Identified Z-bomb Delivery System 20905 | -2/Research | Destroyed B-90 Cyclops 20919 | -2/Research | Identified Ghost Barrier 21047 | -2/Research | Search patrols dispatched 21120 | -2/Research | Identified exit to Quarantine 21151 | -2/Research | Entered Quarantine 21168 | -2/Quarantine | Discovered exit to Access (range 4) 21169 | -2/Quarantine | Spotted Alpha 7 21238 | -2/Quarantine | Met incapacitated Sigix Warrior 21238 | -2/Quarantine | Lockdown squad dispatched 21249 | -2/Quarantine | Found Sigix Containment Pod 21293 | -2/Quarantine | Found Alien Launcher 21296 | -2/Quarantine | Entered Access 21296 | -1/Access | Evolved 2 slots: Utility x2 21301 | -1/Access | Identified exit to Command 21365 | -1/Access | Spotted B-99 Colossus 21368 | -1/Access | Destroyed B-99 Colossus 21375 | -1/Access | Entered Command 21402 | -1/Command | Identified exit to Surface 21421 | -1/Command | Spotted M Guard 21421 | -1/Command | Spotted M Guard 21421 | -1/Command | Spotted Combat Programmer 21422 | -1/Command | Identified Sigix Terminator 21423 | -1/Command | Fired Sigix Terminator 21423 | -1/Command | Destroyed Combat Programmer 21429 | -1/Command | Spotted Combat Programmer 21434 | -1/Command | Met MAIN.C 21523 | -1/Command | Spotted Alpha 7 21523 | -1/Command | Spotted Striker 21523 | -1/Command | Spotted Executioner 21523 | -1/Command | Spotted Executioner 21523 | -1/Command | Spotted Alpha 7 21523 | -1/Command | Spotted Striker 21523 | -1/Command | Spotted Executioner 21523 | -1/Command | Spotted Executioner 21524 | -1/Command | Spotted B-99 Colossus 21528 | -1/Command | Spotted B-99 Colossus 21541 | -1/Command | Core integrity fell below 50% 21544 | *** | Destroyed 0b10! Last Messages --------------- area. 21541_ Field strength at 94. 21541_ Penetrated by Slug. 21541_ Slug penetrates Wall. 21542_ B-99 Colossus activates siege mode. 21542_ Field strength at 46. 21542_ Field strength at 61. 21542_ Knocked back. 21542_ Penetrated by Slug. 21542_ Exp. Cesium-ion Thruster destroyed. 21542_ Slug penetrates Wall. 21543_ Field strength at 38. 21543_ Field strength at 28. 21543_ Quantum Router destroyed. 21543_ Penetrated by Slug. 21543_ Deep Network Scanner destroyed. 21543_ Penetrated by Slug. 21544_ Field strength at 30. [Achievement: Payload Armed] [Achievement: True Flier] Map ----- +----------------------------------------------------+ | ???????# #?# ""T"" # ##????????????????????? | | ???????# #?# # "######+#####+###?????? | | ???????# #?# # ????? | | ?#####?# #?# !! # ????? | | ?# #?# #?# !! + ????? | | ?# #?# #?# !! # ????? | | ?# #?# #?# # #######+####+####?????? | | ### #### #?########### #?????????????????????? | | ? # #?????????##;%;;;##????????????????????? | | ? # #?????????#; ^^ #????????????????????? | | ? # #?????????##%^^ ##???????????????????? | | ? # #?????????# #???????????????????? | | ### #### #?????????##!! % ##???????????????????? | | ?# #?# #????????##%E^! ^^ #???????????????????? | | ?# #?# #????????#"# %[!^%##???????????????????? | | ?# #?# ####?????## !7 =7 #???????????????????? | | ?#####?# ###????## !% % ;#???????????????????? | | ???????# T"#????# % K #???????????????????? | | ???????# ""#??#### ^ E;###?????????????????? | | ???????# ###??# BB EBB #?????????????????? | | ???????# #????# BB BB #?????????????????? | | ???????# #????# K^ #?????????????????? | | ???????# #????# % #?????????????????? | | ???????# #????# % #?????????????????? | | ???????# #????# "" #?????????????????? | | ???????# #????# "@ #?????????????????? | | ???????# ####????# #?????????????????? | | ???????# #???????# #?????????????????? | | ???????# #???????# #?????????????????? | | ???????# #??????#; #?????????????????? | | ???????# #??????## #?????????????????? | | ???????# #???????##############?????????????????? | | ?????###+#######?????????????????????????????????? | | ?????# #????????????########?????????????? | | ?????# #????????????# = #?????????????? | | ?????# #????????????# #?????????????? | | ?????# = #######?###### #?????????????? | | ?????# + #?# + #?????????????? | | ?????# ##### #?# # #?????????????? | | ?????# #???# ### # #?????????????? | | ?????###########???# ########?????????????? | | ??????????########## #????????????????????? | | ??????????# # #????????????????????? | | ??????????# # #????????????????????? | | ??????????# # #????????????????????? | | ??????????# + #????????????????????? | | ??????????# # #????????????????????? | | ??????????# "" + #????????????????????? | | ??????????# """" # #????????????????????? | | ??????????# """" # #????????????????????? | +----------------------------------------------------+ Best States ------------- Heat Dissipation 110 Energy Generation 57 Energy Capacity 800 Matter Stores 300 Matter Capacity 300 Sight Range 22 Robot Scan Range 16 Terrain Scan Range 30 Terrain Scan Density 10 ECM Strength 1 Jamming Range 14 Cloak Strength 4 Power Amplification 30 Additional Mass Support 6 Armor Coverage 600 Resistance: TH 15 Propulsion Shielding 66 Phase Shifting 15 Evasion (%) 82 Targeting Accuracy 8 Armor Integrity Analysis 30 Particle Charging 30 Offensive Hacking 45 Defensive Hacking 37 Authchip Count 1 Item Schematics ----------------- Med. Storage Unit | -9/Materials | Scanalyzed Adv. Assault Cannon | -7/Zion | Archive Thermic Laser | -7/Zion | Archive Plasma Cannon | -7/Zion | Archive Force Field | -7/Zion | Archive Xenon Bombardment Thruster | -7/Zion | Archive Adv. Melee Analysis Suite | -7/Zion | Archive Great Axe | -7/Zion | Archive Imp. Transmission Jammer | -7/Zion | Archive Adv. Plasma Cannon | -7/Zion | Archive Lightning Gun | -7/Zion | Archive Adv. Sensor Array | -7/Zion | Archive Imp. Carbon-fiber Leg | -7/Zion | Archive Hpw. Shock Rifle | -7/Zion | Archive Imp. EM Pulse Cannon | -7/Zion | Archive Imp. Particle Charger | -7/Zion | Archive Biomechanical Wings | -6/Factory | Scanalyzed Stasis Canceller | -6/Factory | Scanalyzed Cesium-ion Thruster | -6/Factory | Scanalyzed Adv. System Shield | -6/Factory | Hacked Cloaking Device | -6/Factory | Hacked Combat Drone Bay | -6/Data Miner | Free Cld. Nuclear Pulse Thruster | -6/Data Miner | Free Lgt. Regenerative Plating | -6/Data Miner | Free Imp. Energy Well | -6/Data Miner | Free Imp. KE Penetrator | -6/Data Miner | Free Impulse Thruster | -6/Data Miner | Free Lrn. Sensor Array | -6/Data Miner | Free HERF Cannon | -6/Data Miner | Free Wave Gun | -6/Data Miner | Free Hyp. Railgun | -6/Data Miner | Free Hvy. Disruptor Cannon | -6/Data Miner | Free Railgun | -6/Data Miner | Free Mic. Fission Core | -4/Factory | Hacked Lgt. Neutrino Core | -4/Factory | Hacked Exp. Cesium-ion Thruster | -4/Factory | Hacked Robot Schematics ------------------ S-27 Virus | -7/Zion | Archive W-25 Informer | -7/Zion | Archive X-77 Beamer | -7/Zion | Archive L-41 Fighter | -6/Data Miner | Free A-15 Conveyor | -6/Data Miner | Free B-48 Gladiator | -6/Data Miner | Free M-22 Extractor | -6/Data Miner | Free Fabricated ------------ Imp. Transmission Jammer | x2 | -6/Factory Cesium-ion Thruster | x2 | -6/Factory Cesium-ion Thruster | x2 | -6/Factory Cld. Nuclear Pulse Thruster | x1 | -5/Factory Cld. Nuclear Pulse Thruster | x1 | -5/Factory Exp. Cesium-ion Thruster | x1 | -4/Factory Exp. Cesium-ion Thruster | x1 | -4/Factory Exp. Cesium-ion Thruster | x1 | -4/Factory | Authchip Exp. Cesium-ion Thruster | x1 | -4/Factory Repaired ---------- Seismic Detector | 40% | -9/Materials Hrd. Medium Armor Plating | 33% | -9/Materials Assault Cannon | 35% | -9/Materials Flight Unit | 75% | -9/Storage Stasis Canceller | 99% | -6/Factory | Broken Lgt. Deuterium Engine | 8% | -5/Factory Cesium-ion Thruster | 52% | -5/Factory Imp. Flight Unit | 72% | -5/Factory Med. Storage Unit | 38% | -4/Factory Cld. Nuclear Pulse Thruster | 1% | -4/Factory | Broken Cld. Cesium-ion Thruster | 26% | -4/Factory Lyr. Light Armor Plating | 4% | -4/Factory Adv. Sensor Array | 8% | -3/Testing Studied --------- Mni. Grenade Launcher | -9/Materials | Hacked Grenade Launcher | -9/Materials | Hacked Hvy. Assault Rifle | -9/Materials | Hacked Flight Unit | -7/Factory | Hacked Hvy. Missile Launcher | -6/Factory | Hacked Cesium-ion Thruster | -6/Factory | Hacked Field Propulsion Array | -3/Research | Hacked Alien Tech Used ----------------- Core Expander Integrated Dissipator Transdimensional Reconstructor Sigix Terminator Achievements -------------- Betrayal Most Foul Ew, Corruption Express Service Fitting Room Giant Slayer Hard Hitter Infodabbler Meet Your Maker Payload Armed The Better Part Of Valor The Robot, The Myth, The Legend True Flier Ultimate Loadout Challenges ------------ None Game ------ Seed VampiricSpreadInterface Manual? 0 Play Time 06:27:00 Cumulative 184.8 hours Start 2026.02.04 @ 00:34:32 End 2026.02.05 @ 23:02:50 Sessions 9 Manual Loads 0 Difficulty Rogue Special Mode None Game No. 90 Rogue 90 Adventurer 0 Explorer 0 Win Type 3 Total 4 Types 3/0/0/1/0/0/0/0/0/0 Lore% 55 Gallery% 60 Achievement% 45 Wizard Run 0 Options --------- Layout 1 ASCII 0 Keyboard 1 Movement Numpad Keybinds 0 Fullscreen 1 Font 24/Smallcaps Map View 50x35 Zoom Use 0% Tactical HUD 1 Map Filters NONE Filters NONE Steam 1 RUN: ec076e14-44f0-4993-a1c9-6ef775d2d5f3